Cogmind - Beta 16 @@@ ROGUE MODE // 2025.12.30 @ 22:57:53 Player: doki Result: Destroyed by as-15188 with Assembled Blade Performance ------------- Evolutions (0) 0 Regions Visited (4) 800 Robots Destroyed (27) 135 Value Destroyed (622) 622 Prototype IDs (23) 460 Alien Tech Used (0) 0 Bonus (307) 307 TOTAL SCORE: 2324 Bonus ------- Follower Combat Kills 7 Aligned with FarCom 300 Cogmind --------- Core Integrity 0/250 Matter 293/300 Energy 1600/1625 System Corruption 1% Temperature Cool (40) Movement Treading (160) Location -9/Mines Parts ------- > --- POWER (1) -------- Light Ion Engine > --- PROPULSION (2) --- Light Treads Light Treads > --- UTILITY (2) ------ Large Storage Unit Superbattery > --- WEAPON (2) ------- (None) > --- INVENTORY (15) --- Light Treads Heat Sink Small Storage Unit Medium Storage Unit Structural Scanner Targeting Computer Targeting Computer Light Assault Rifle Bore Cannon Mining Laser Peak State ------------ > --- POWER ------------ Ion Engine > --- PROPULSION ------- Light Treads Light Treads > --- UTILITY ---------- Large Storage Unit Superbattery > --- WEAPON ----------- Assault Rifle Heavy Assault Rifle > --- INVENTORY -------- Light Ion Engine Light Treads Light Treads Heat Sink Small Storage Unit Medium Storage Unit Structural Scanner Targeting Computer PSU Rigger Light Assault Rifle Mining Laser [Rating: 18] Favorites ----------- Power Ion Engine Engine Ion Engine Propulsion Light Treads Treads Light Treads Utility Large Storage Unit Device Seismic Detector Storage Large Storage Unit Protection Light Armor Plating Weapon Heavy Assault Rifle Energy Gun Small Laser Ballistic Gun Heavy Assault Rifle Special Weapon Mining Laser Build | -11 -10 -10 -10 -9 ------- Run | Yrd Mat Min Exi Min Slots Evolved . | . . . . . Power . | . . . . . Propulsion . | . . . . . Utility . | . . . . . Weapon . | . . . . . Parts Attached 24 | 7 6 7 3 1 Power 5 | 1 1 2 . 1 Engine 5 | 1 1 2 . 1 Core . | . . . . . Reactor . | . . . . . Propulsion 6 | 2 2 2 . . Treads 6 | 2 2 2 . . Leg . | . . . . . Wheel . | . . . . . Hover . | . . . . . Flight . | . . . . . Utility 8 | 2 2 1 3 . Device 3 | 1 . . 2 . Storage 4 | 1 2 . 1 . Processor . | . . . . . Hackware . | . . . . . Protection 1 | . . 1 . . Artifact . | . . . . . Weapon 5 | 2 1 2 . . Energy Gun 1 | 1 . . . . Energy Cannon . | . . . . . Ballistic Gun 3 | 1 . 2 . . Ballistic Cannon . | . . . . . Launcher . | . . . . . Special Weapon 1 | . 1 . . . Impact Weapon . | . . . . . Slashing Weapon . | . . . . . Piercing Weapon . | . . . . . Special Melee Weapon . | . . . . . Unidentified Prototypes 3 | . . . 3 . Parts Lost 7 | . . 3 . 4 Power 1 | . . . . 1 Propulsion 2 | . . 1 . 1 Utility 2 | . . 2 . . Weapon 2 | . . . . 2 Highest Loss Streak 4 | . . 1 . 4 To Critical Strikes 1 | . . 1 . . Average Backups 7 | 1 3 10 10 11 Power . | . 1 1 1 1 Propulsion 1 | . . 2 2 2 Utility 3 | . . 4 5 5 Weapon 1 | . 1 1 2 2 Tool/Special . | . . . . . Unused Backups 6 | . . . . 6 Power . | . . . . . Propulsion 1 | . . . . 1 Utility 4 | . . . . 4 Weapon 1 | . . . . 1 Tool/Special . | . . . . . Average Slot Usage (%) 94 | . 100 89 91 97 Engine 14 | . 14 14 14 14 Treads 28 | . 28 28 28 28 Device 5 | . 14 . . . Storage 16 | . 14 14 19 28 Protection 1 | . . 3 . . Energy Gun 5 | . 14 2 . . Ballistic Gun 21 | . 13 25 28 25 Peak Build Rating 18 | 7 7 9 18 18 Average Rating 8 | 5 7 8 12 17 On Entrance 8 | . 7 7 8 18 Avg Prop Armor Cover (%) . | . . . . . Naked Turns . | . . . . . Heaviest Build 34 | 13 28 33 34 34 Greatest Support 40 | 40 40 40 40 40 Greatest Overweight (x) 3 | 3 . 1 . . Average Overweight (x) . | . . . . . Largest Inventory Capacity 15 | 8 15 15 15 15 Average Capacity 12 | 7 9 15 15 15 Most Carried 12 | 2 7 12 11 12 Average Carried 7 | 1 3 10 10 11 Final Capacity 15 | 8 15 15 15 15 Final Carried 10 | 2 7 10 10 10 Class Distribution -------------------- 73% | Mutant 26% | Scavenger-Mutant Dominant Class ---------------- Mutant | -10/Materials Scavenger-Mutant | -10/Mines Mutant | -10/Exiles Mutant | -9/Mines Resources | -11 -10 -10 -10 -9 ----------- Run | Yrd Mat Min Exi Min Matter Collected 664 | 274 79 239 . 72 Remotely . | . . . . . Salvage Created 736 | 127 250 343 . 16 Parts 56 | 6 21 29 . . Haulers Intercepted 1 | . 1 . . . Recyclers Shooed . | . . . . . Parts Field Recycled . | . . . . . Retrieved Matter . | . . . . . Parts Self-Destructed . | . . . . . Prevented . | . . . . . Parts Restored . | . . . . . Kills | -11 -10 -10 -10 -9 ------- Run | Yrd Mat Min Exi Min Combat Hostiles Destroyed 17 | . 7 9 . 1 Guns 15 | . 5 9 . 1 AOE 2 | . 2 . . . Classes Destroyed 10 | 2 6 1 . 1 Builder 4 | . 4 . . . Tunneler 3 | 3 . . . . Hauler 1 | . 1 . . . Recycler 1 | 1 . . . . Operator 1 | . 1 . . . Watcher 1 | . 1 . . . Swarmer 6 | . 3 3 . . Grunt 8 | . 4 4 . . Sentry 2 | . . 2 . . Assembled 1 | . . . . 1 Best Kill Streak 4 | 2 4 3 . 1 Combat Bots Only 3 | . 3 3 . 1 Max Kills in Single Turn 4 | 1 4 2 . 1 Gunslinging 1 | . . 1 . . Exploded 2 | . 2 . . . Melee . | . . . . . Uniques/NPCs Destroyed . | . . . . . Combat | -11 -10 -10 -10 -9 -------- Run | Yrd Mat Min Exi Min Hostile Shots Fired 147 | . 49 59 . 39 Missed 36 | . 15 14 . 7 Hits 111 | . 34 45 . 32 Melee 5 | . . . . 5 Projectile 106 | . 34 45 . 27 Critical Strikes 2 | . . 2 . . Damage Taken 1417 | . 400 513 . 504 Core 276 | . 85 80 . 111 Absorbed by Shields . | . . . . . Core Remaining (%) 100 | 100 . . . . Volleys Fired 75 | 14 25 31 . 5 Largest 2 | 2 2 2 . 2 Hottest 140 | 60 140 60 . 43 Shots Fired 150 | 28 50 62 . 10 Gun 149 | 28 49 62 . 10 Cannon . | . . . . . Launcher . | . . . . . Special 1 | . 1 . . . Kinetic 105 | 14 24 57 . 10 Thermal 45 | 14 26 5 . . Explosive . | . . . . . Electromagnetic . | . . . . . Robot Hit Streak 12 | 7 6 12 . 2 Robot Miss Streak 3 | 2 3 3 . 2 Penetration Max . | . . . . . Secondary Targets 5 | . 2 2 . 1 Max Gunslinging Chain 1 | . 1 1 . 1 Shots Hit Robots 95 | 18 28 43 . 6 Core Hits 49 | 7 18 19 . 5 Critical Kills . | . . . . . Critical Parts Destroyed 1 | . . 1 . . Critical Strikes 1 | . . 1 . . Destroy 1 | . . 1 . . Melee Attacks . | . . . . . Impact . | . . . . . Slashing . | . . . . . Piercing . | . . . . . Sneak Attacks . | . . . . . Combat Hostiles . | . . . . . Follow-up Attacks . | . . . . . Damage Inflicted 1888 | 156 1099 537 . 96 Guns 1041 | 156 269 537 . 79 Cannons . | . . . . . Explosions 827 | . 827 . . . Melee . | . . . . . Ramming 20 | . 3 . . 17 Kinetic 738 | 81 94 484 . 79 Thermal 303 | 75 175 53 . . Explosive 827 | . 827 . . . Electromagnetic . | . . . . . Impact . | . . . . . Slashing . | . . . . . Piercing . | . . . . . Highest Corruption 1 | . 1 1 1 1 Average Corruption 1 | . 1 1 1 1 Corruption Purged . | . . . . . Corruption Blocked . | . . . . . Effects 8 | . 1 5 1 1 Message Errors 2 | . 1 1 . . Matter Fused 2 | . . 1 1 . Heat Flow Errors 1 | . . . . 1 Energy Discharges 1 | . . 1 . . Data Loss (minor) 2 | . . 2 . . Overload Shots . | . . . . . Overflow Damage 34 | . 34 . . . Projectiles . | . . . . . Explosions 34 | . 34 . . . Melee . | . . . . . Knockbacks . | . . . . . Impact . | . . . . . Kinetic . | . . . . . Secondary . | . . . . . Self-Inflicted Damage 78 | . 78 . . . Shots 2 | . 2 . . . Rammed 8 | . 1 . . 7 Targets Rammed 8 | . 1 . . 7 Kicked . | . . . . . Crushed . | . . . . . Highest Temperature 266 | 40 76 47 . 266 Average Temperature 35 | 20 30 18 . 124 Received Heat Transfer 542 | . 96 198 . 248 Siege Activations . | . . . . . Martial Activations . | . . . . . Shielding Activations . | . . . . . Robots Disrupted . | . . . . . Combat Hostiles . | . . . . . Robots Corrupted . | . . . . . Combat Hostiles . | . . . . . Parts Fried . | . . . . . Impact Corruptions . | . . . . . Robots Melted . | . . . . . Combat Hostiles . | . . . . . Parts Melted . | . . . . . Heat Transferred 700 | 175 400 125 . . Parts Sabotaged . | . . . . . Parts Stolen . | . . . . . Parts Stripped . | . . . . . Power Chain Reactions . | . . . . . Alert | -11 -10 -10 -10 -9 ------- Run | Yrd Mat Min Exi Min Maximum Alert Level 1 | . 1 . . . Low Security (%) 85 | 100 63 100 . 100 Level 1 14 | . 36 . . . Level 2 . | . . . . . Level 3 . | . . . . . Level 4 . | . . . . . Level 5 . | . . . . . High Security . | . . . . . Max Security . | . . . . . Peak Influence 250 | 5 250 74 . 24 Initial 64 | . . 64 . . Average 77 | 1 160 29 . 3 Influence Increases 683 | 20 414 210 . 39 Destroy 0b10 Robot/C 340 | . 140 180 . 20 Destroy 0b10 Robot/NC 55 | 20 35 . . . Destroy Leader 64 | . 34 30 . . Allied During Kill 4 | . . . . 4 Successful Hack 13 | . 13 . . . Disable Machine 120 | . 120 . . . Destroy Structure 72 | . 72 . . . Lose Combat Pursuer 15 | . . . . 15 Influence Decreases 683 | 20 249 361 14 39 Entered New Map 115 | . . 101 14 . Time Decay 519 | 20 249 240 . 10 Lost Part 20 | . . 20 . . Lost Ally 29 | . . . . 29 Squads Dispatched 3 | . 2 . . 1 Investigation . | . . . . . Extermination . | . . . . . Reinforcement 2 | . 2 . . . Assault 1 | . . . . 1 Garrison . | . . . . . Intercept . | . . . . . Searches Triggered . | . . . . . Construction Impeded . | . . . . . Haulers Reinforced . | . . . . . Active Scanning Responses . | . . . . . Cargo Convoy Interrupts . | . . . . . Stealth | -11 -10 -10 -10 -9 --------- Run | Yrd Mat Min Exi Min Distress Signals . | . . . . . Communications Jammed . | . . . . . Distress Signals . | . . . . . Times Spotted 45 | . 11 9 . 25 Peak Tracking Total 13 | . 3 3 . 13 Tactical Retreats 2 | . . . . 2 Traps | -11 -10 -10 -10 -9 ------- Run | Yrd Mat Min Exi Min Traps Triggered . | . . . . . Indirectly . | . . . . . Trap Hack Attempts . | . . . . . Triggered . | . . . . . Disarmed . | . . . . . Reprogrammed . | . . . . . Reused . | . . . . . Traps Extracted . | . . . . . Installed . | . . . . . Triggered . | . . . . . Objects Rigged 10 | . 10 . . . Exploded 3 | . 3 . . . Machines | -11 -10 -10 -10 -9 ---------- Run | Yrd Mat Min Exi Min Machines Disabled 8 | . 8 . . . Max in Single Turn 4 | . 4 . . . Machines Repaired . | . . . . . Machines Dismantled . | . . . . . Machines Sabotaged . | . . . . . Overloaded Fab Kills . | . . . . . Hacking | -11 -10 -10 -10 -9 --------- Run | Yrd Mat Min Exi Min Machines Accessed 5 | . 4 . 1 . Terminals 4 | . 4 . . . Fabricators . | . . . . . Repair Stations . | . . . . . Recycling Units . | . . . . . Scanalyzers . | . . . . . Garrison Access . | . . . . . Total Hacks 11 | . 10 . 1 . Successful 5 | . 4 . 1 . Failed 6 | . 6 . . . Catastrophic 1 | . 1 . . . Database Lockouts . | . . . . . Manual 12 | . 10 . 2 . Terminals 10 | . 10 . . . Fabricators . | . . . . . Repair Stations . | . . . . . Recycling Units . | . . . . . Scanalyzers . | . . . . . Garrison Access . | . . . . . Terminal Hacks 2 | . 1 . 1 . Branch Access Points 1 | . 1 . . . Proto ID Catalog 1 | . . . 1 . Fabricator Hacks . | . . . . . Repair Station Hacks . | . . . . . Recycling Unit Hacks . | . . . . . Scanalyzer . | . . . . . Garrison Access Hacks . | . . . . . Unauthorized Hacks 3 | . 3 . . . Terminals 3 | . 3 . . . Botnet 2 | . 2 . . . Detonate 1 | . 1 . . . Fabricators . | . . . . . Repair Stations . | . . . . . Recycling Units . | . . . . . Scanalyzers . | . . . . . Garrison Access . | . . . . . Data Cores Recovered . | . . . . . Used . | . . . . . Hacking Detections 4 | . 4 . . . Full Trace Events 1 | . 1 . . . Feedback Events 1 | . 1 . . . Corruption 1 | . 1 . . . Feedback Blocked . | . . . . . Robot Schematics Acquired . | . . . . . Robots Built . | . . . . . Authchips . | . . . . . Time . | . . . . . Total Robot Build Rating . | . . . . . Part Schematics Acquired . | . . . . . Parts Built . | . . . . . Authchips . | . . . . . Time . | . . . . . Total Part Build Rating . | . . . . . Part Studies Acquired . | . . . . . Parts Repaired . | . . . . . Time . | . . . . . Parts Recycled . | . . . . . Recycled Matter . | . . . . . Retrieved Matter . | . . . . . Retrieved Components . | . . . . . Parts Scanalyzed . | . . . . . Part Schematics Acquired . | . . . . . Parts Damaged . | . . . . . Bothacking | -11 -10 -10 -10 -9 ------------ Run | Yrd Mat Min Exi Min Used RIF Installer . | . . . . . Robots Hacked . | . . . . . Non-combat . | . . . . . Combat . | . . . . . Robot Hacks Applied . | . . . . . Relay Couplers Released . | . . . . . Fabnet Peak Effective % . | . . . . . Robots Rewired . | . . . . . Allies Hacked . | . . . . . Hacks Repelled . | . . . . . Allies | -11 -10 -10 -10 -9 -------- Run | Yrd Mat Min Exi Min Total Allies 4 | . . 3 . 1 Largest Group 4 | . . 3 3 4 Highest-Rated Group 71 | . . 40 40 71 Highest-Rated Ally 31 | . . 16 16 31 Total Orders . | . . . . . Ally Attacks 21 | . . . . 21 Total Damage 183 | . . . . 183 Kills 4 | . . . . 4 Allies Corrupted . | . . . . . Allies Melted . | . . . . . Intel | -11 -10 -10 -10 -9 ------- Run | Yrd Mat Min Exi Min Active Infowar (turns) 734 | 120 579 33 2 . Seismic 732 | 120 579 33 . . Cloaking 2 | . . . 2 . Robot Analysis Total . | . . . . . Derelict Logs Recovered 2 | . . 2 . . Drone Launches . | . . . . . Drone Recoveries . | . . . . . Exploration | -11 -10 -10 -10 -9 ------------- Run | Yrd Mat Min Exi Min Turns Passed 1791 | 174 579 580 370 88 Spaces Moved 901 | 80 285 282 228 26 Core 8 | 8 . . . . Treads 893 | 72 285 282 228 26 Legs . | . . . . . Wheels . | . . . . . Hover . | . . . . . Flight . | . . . . . Fastest Speed 50 | 50 160 160 160 160 Average Speed 159 | 154 160 160 160 160 Slowest Speed 240 | 200 160 240 160 160 Overloaded Moves . | . . . . . Propulsion Burnouts . | . . . . . Robots Hopped . | . . . . . Potential Cave-ins . | . . . . . Cave-ins Triggered . | . . . . . Exploration Rate (%) 36 | 4 56 54 62 6 Regions Visited 4 Branch Regions 3 Pre-discovered Areas 1 | . . 1 . . Known Exits Taken 1 | . 1 . . . Unknown Exits Taken 3 | 1 . 1 1 . Scrap Searched . | . . . . . Spaces Dug 1 | . 1 . . . Terrain Destroyed 78 | . 78 . . . Melee . | . . . . . Projectile 1 | . 1 . . . AOE 77 | . 77 . . . Terrain Rammed . | . . . . . Walls Destroyed . | . . . . . Machines Disabled . | . . . . . Actions | -11 -10 -10 -10 -9 --------- Run | Yrd Mat Min Exi Min Total 1099 | 102 358 348 233 58 Wait 74 | . 37 22 . 15 Move 897 | 79 284 281 227 26 Hop . | . . . . . Pick Up 9 | 2 2 3 . 2 Fast Attach 12 | 7 . 2 3 . Attach 3 | . . 1 . 2 Detach 1 | . . . 1 . Swap 12 | . 7 4 . 1 Drop 8 | . 2 4 2 . Fire 75 | 14 25 31 . 5 Melee . | . . . . . Ram . | . . . . . Kick . | . . . . . Crush 8 | . 1 . . 7 Escape Stasis . | . . . . . Rewire . | . . . . . Trap . | . . . . . Miscellaneous . | . . . . . Route ------- -11/Scrapyard -10/Materials (discovered 4 exits: [*Mat x2] / *Min x2) -10/Mines (discovered 2 exits: [*Mat] / *Exi) -10/Exiles -9/Mines History --------- Turn | Location | Event 12 | -11/Scrapyard | Discovered new exit (range 16) 175 | -11/Scrapyard | Entered Materials 320 | -10/Materials | Build established: Mutant 445 | -10/Materials | Discovered new exit (range 11) 477 | -10/Materials | Identified exit to Mines 641 | -10/Materials | Discovered new exit (range 14) 754 | -10/Materials | Entered Mines 863 | -10/Mines | Learned Materials emergency access door positions 996 | -10/Mines | Core integrity fell below 50% 1060 | -10/Mines | Discovered new exit (range 7) 1117 | -10/Mines | Build established: Scavenger-Mutant 1233 | -10/Mines | Assisted by bots powering up and referring to "LRC-V3" 1286 | -10/Mines | Learned location of Zion (-6) 1326 | -10/Mines | Deemed a non-threat by the Exiles lab entrance 1327 | -10/Mines | Discovered new exit (range 5) 1334 | -10/Mines | Entered Exiles 1334 | -10/Exiles | Accompanied by 3 allies 1374 | -10/Exiles | Met 8R-AWN 1402 | -10/Exiles | Met EX-HEX 1448 | -10/Exiles | Met EX-BIN 1472 | -10/Exiles | Aligned with FarCom system 1474 | -10/Exiles | Given EX-Vault access code 1508 | -10/Exiles | Build established: Mutant 1526 | -10/Exiles | Opened EX-Vault 1531 | -10/Exiles | Found Prototype Device 1531 | -10/Exiles | Identified PSU Rigger 1536 | -10/Exiles | Found Prototype Device 1536 | -10/Exiles | Identified Cloak of Protection 1545 | -10/Exiles | Found Prototype Storage 1545 | -10/Exiles | Identified Superbattery 1587 | -10/Exiles | Warned to stay clear of 0b10 Research branches 1597 | -10/Exiles | Exiles lab attacked by MAIN.C 1688 | -10/Exiles | Discovered new exit (range 12) 1704 | -10/Exiles | Left Exiles lab with Superbattery 1704 | -10/Exiles | Entered Mines 1704 | -9/Mines | Accompanied by 3 allies 1705 | -9/Mines | Assembled infested the area 1705 | -9/Mines | Met a Derelict testing a Signal Generator 1710 | -9/Mines | Assisted by a Guerilla fighting off Assembled 1784 | -9/Mines | Core integrity fell below 20% 1792 | -9/Mines | Destroyed by as-15188 with Assembled Blade Last Messages --------------- 01773_ Acquired 16 matter. 01774_ C-45 Heavy ARC: "LOCATED POTENTIAL SOURCE OF ANOMALOUS SIGNAL. NEUTRALIZING." 01774_ C-45 Heavy ARC bursts open, deploying its payload. 01774_ G-34 Mercenary unfolds itself. 01774_ B-36 Bruiser unfolds itself. 01774_ G-34 Mercenary unfolds itself. 01774_ M-13 Machinist unfolds itself. 01778_ Acquired 13 matter. 01780_ Slammed into as-21554. 01781_ Slammed into as-28856. 01782_ Assault Rifle destroyed. 01783_ Slammed into as-05469. 01783_ Hvy. Assault Rifle destroyed. 01784_ Slammed into as-25690. 01786_ Slammed into as-59622. 01787_ Ion Engine destroyed. 01788_ Lgt. Treads destroyed. 01790_ Slammed into as-15188. Map ----- +----------------------------------------------------+ | ?????????????????????????????????????????????????? | | ?????????????????????????????????????????????????? | | ?????????????????????????????????????????????????? | | ?????????????????????????????????????????????????? | | ?????????????????????????????????????????????????? | | ?????????????????????????????????????????????????? | | ?????????????????????????????????????????????????? | | ?????????????????????????????????????????????????? | | ?????????????????????????????????????????????????? | | ??????????????????s?ss???????????????????????????? | | ?????????????????????????????????????????????????? | | ????????????????????s????????????????????????????? | | ?????????????????????????????????????????????????? | | ?????????????????????????????????????????????????? | | ?????????????###?????????????????????????????????? | | ????????????## #??????####??????????????????????? | | ????????????? ?????## ##?????????????????????? | | ?????????????? ?????# #?????????????????????? | | ??????????????? ##???# &#?????????????????????? | | ??????###??????# ##??# #?????????????????????? | | ?????## ????# ##?# #?????????????????????? | | ?????# " g??# ####*!##?????????????????????? | | ??????# "%" ## #?#%##????##????????????????? | | ???????# " g #?#=#??? ?????????????????? | | ?????????## ##### a =###a##=!##* #??????????????? | | ????????????????##a=%!!aa@a==a%%= #?????????????? | | ???????????g?????##########%a !%= #?????????????? | | ???????????????????????????? # # ##?????????????? | | ????????????????????????????? ??????????????????? | | ??????????????????????????????? ?????????????????? | | ???????????????????????????????? ???????????????? | | ?????????????????????????????????##??????????????? | | ?????????????????????????????????????????????????? | | ?????????????????????????????????????????????????? | | ?????????????????????????????????????????????????? | | ???????????????????s?????????????????????????????? | | ?????????????????????s???????????????????????????? | | ?????????????????????????????????????????????????? | | ?????????????????????????????????????????????????? | | ?????????????????????????????????????????????????? | | ?????????????????????????????????????????????????? | | ?????????????????????????????????????????????????? | | ?????????????????????????????????????????????????? | | ?????????????????????????????????????????????????? | | ?????????????????????????????????????????????????? | | ?????????????????????????????????????????????????? | | ?????????????????????????????????????????????????? | | ?????????????????????????????????????????????????? | | ?????????????????????????????????????????????????? | | ?????????????????????????????????????????????????? | +----------------------------------------------------+ Best States ------------- Heat Dissipation 25 Energy Generation 10 Energy Capacity 1750 Matter Stores 300 Matter Capacity 300 Sight Range 16 Terrain Scan Density 10 Armor Coverage 150 Evasion (%) 40 Recoil Reduction 2 Item Schematics ----------------- None Robot Schematics ------------------ None Fabricated ------------ Nothing Repaired ---------- Nothing Studied --------- None Alien Tech Used ----------------- None Achievements -------------- True Hacker Challenges ------------ None Game ------ Seed AluminumWeightInterpreter Manual? 0 Play Time 00:24:51 Cumulative 9.7 hours Start 2025.12.30 @ 20:48:08 End 2025.12.30 @ 22:57:53 Sessions 1 Manual Loads 0 Difficulty Rogue Special Mode None Game No. 16 Rogue 16 Adventurer 0 Explorer 0 Win Type - Total 0 Types 0/0/0/0/0/0/0/0/0/0 Lore% 21 Gallery% 14 Achievement% 14 Wizard Run 0 Options --------- Layout 1 ASCII 0 Keyboard 1 Movement Numpad Keybinds 0 Fullscreen 1 Font 24/Smallcaps Map View 50x35 Zoom Use 0% Tactical HUD 1 Map Filters NONE Filters NONE Steam 1 RUN: 60a2834e-9981-47a2-b9a1-a8e5c839c7ce